[Event "Karel Janecek Open 2024"]
[Site "Prague"]
[Date "2024.03.03"]
[Round "5.9"]
[White "Kusa, Jakub"]
[Black "Barbosa, Evandro Amorim"]
[Result "1/2-1/2"]
[ECO "E92"]
[WhiteElo "2350"]
[BlackElo "2491"]
[Annotator "TA"]
[PlyCount "64"]
[EventDate "2024.02.22"]
[EventType "swiss"]
[EventCountry "CZE"]
[SourceTitle "playchess.com"]
[Source "ChessBase"]
[SourceQuality "1"]
[TimeControl "40/5400+30:1800+30"]

{[%evp 29,64,14,17,2,18,0,0,0,0,0,6,0,0,0,0,0,0,0,0,0,0,0,0,0,0,0,0,0,0,0,0,0,0,0,0,0,4]} 1. d4 {[%emt 0:00:08]} Nf6 {[%emt 0:00:51]} 2. Nf3 {[%emt 0:00:20]} g6 {[%emt 0:00:15]} 3. c4 {[%emt 0:00:17]} Bg7 {[%emt 0:00:15]} 4. Nc3 {[%emt 0:00:31]} d6 {[%emt 0:00:16]} 5. e4 {[%emt 0:00:31]} O-O {[%emt 0:00:13]} 6. Be2 {[%emt 0:01:01]} e5 {[%emt 0:00:15]} 7. Be3 {[%emt 0:00:20]} exd4 {[%emt 0:01:56]} 8. Nxd4 {[%emt 0:00:11]} Re8 {[%emt 0:00:34]} 9. f3 {[%emt 0:00:09]} c6 {[%emt 0:00:57]} 10. Bf2 {[%emt 0:00:46]} d5 {[%emt 0:00:35]} 11. exd5 {[%emt 0:01:01]} cxd5 {[%emt 0:00:09]} 12. O-O {[%emt 0:00:11]} Nc6 {[%emt 0:01:07]} 13. c5 {[%emt 0:00:59]} Nh5 {[%emt 0:01:11][%cal Bf6h5,Bh5g7,Bg7f5][%mdl 32]} 14. Qd2 {[%emt 0:00:47]} Be5 {[%emt 0:01:02]} 15. g3 {[%emt 0:01:00]} Ng7 {[%emt 0:01:16] The position is equal.} 16. Rfe1 {[%emt 0:05:04]} Nf5 {[%emt 0:12:43]} 17. Ncb5 {[%emt 0:06:01]} Qf6 {[%emt 0:10:55]} 18. Rad1 {[%emt 0:04:06]} Nfxd4 {[%emt 0:07:27]} 19. Nxd4 {[%emt 0:00:13]} Bh3 {[%emt 0:00:36]} 20. f4 {[%emt 0:03:01]} Bxd4 {[%emt 0:07:00]} 21. Bxd4 {[%emt 0:00:09]} Nxd4 {[%emt 0:00:35]} 22. Qxd4 {[%emt 0:00:09]} Qxd4+ {[%emt 0:00:07]} 23. Rxd4 {[%emt 0:00:08]} Rac8 {[%emt 0:00:17]} 24. Rxd5 {[%emt 0:09:29]} Re4 {[%emt 0:01:24]} 25. a3 {[%emt 0:04:13]} Be6 {[%emt 0:01:18]} 26. Rdd1 {[%emt 0:01:36]} Rxc5 {[%emt 0:02:27]} 27. Bf3 {[%emt 0:00:34]} Rxe1+ {[%emt 0:02:33]} 28. Rxe1 {[%emt 0:00:07]} b6 {[%emt 0:00:56]} 29. Kf2 {[%emt 0:00:20]} Kf8 {[%emt 0:03:02]} 30. Ke3 {[%emt 0:00:26]} Ke7 {[%emt 0:06:12]} 31. Kd2 {[%emt 0:00:53]} Kd6 {[%emt 0:01:05]} 32. Re3 {[%emt 0:02:27]} Bf5 {[%emt 0:11:52] A balanced but interesting game.   Weighted Error Value: White=0.04 (flawless) /Black=0.02 (flawless) .  OK:         	White=3     	Black=8} 1/2-1/2

[Event "Karel Janecek Open 2024"]
[Site "Prague"]
[Date "2024.03.03"]
[Round "5.10"]
[White "Csonka, Balasz"]
[Black "Senthil Maran K"]
[Result "1/2-1/2"]
[ECO "D46"]
[WhiteElo "2480"]
[BlackElo "2275"]
[Annotator "TA"]
[PlyCount "92"]
[EventDate "2024.02.22"]
[EventType "swiss"]
[EventCountry "CZE"]
[SourceTitle "playchess.com"]
[Source "ChessBase"]
[SourceQuality "1"]
[TimeControl "40/5400+30:1800+30"]

{[%evp 16,92,12,15,59,60,77,70,73,76,89,108,116,105,116,119,122,89,91,90,93,95,135,132,146,155,141,137,132,108,110,120,132,121,139,114,143,142,139,139,123,109,102,0,132,0,102,108,132,132,143,151,147,150,146,133,155,113,140,143,152,101,105,0,143,114,172,187,183,125,114,127,187,177,194,162,176,128,234]} 1. d4 {[%emt 0:00:04]} d5 {[%emt 0:01:21]} 2. c4 {[%emt 0:00:07]} c6 {[%emt 0:00:34]} 3. Nf3 {[%emt 0:00:10]} e6 {[%emt 0:01:05]} 4. e3 {[%emt 0:00:50]} Nf6 {[%emt 0:06:10]} 5. Bd3 {[%emt 0:02:12]} Nbd7 {[%emt 0:03:25]} 6. O-O {[%emt 0:00:13]} dxc4 {[%emt 0:03:48]} 7. Bxc4 {[%emt 0:00:10]} Bd6 {[%emt 0:00:17]} 8. Nc3 {[%emt 0:00:51]} O-O {[%emt 0:01:23]} 9. e4 {[%emt 0:00:37][%cal Be3e4,Be4e5][%mdl 32] [#] aiming for e5.} b5 {[%emt 0:05:55][%cal Bb7b5,Bb5b4][%mdl 32]} 10. Bb3 {[%emt 0:01:28] Threatens to win with e5.} b4 {[%emt 0:12:14]} 11. e5 $1 {[%emt 0:00:21]} bxc3 {[%emt 0:00:06] White is slightly better.} 12. exd6 {[%emt 0:00:13]} Ba6 {[%emt 0:06:51][%cal Bc8a6,Ba6d3,Bd3g6,Bg6f5][%mdl 32]} 13. Re1 {[%emt 0:00:55]} Nb6 {[%emt 0:00:43]} 14. bxc3 {[%emt 0:03:59]} Qxd6 {[%emt 0:00:13]} 15. Ne5 {[%emt 0:20:19]} Nfd7 {[%emt 0:15:37]} 16. Qg4 {[%emt 0:11:14]} Nxe5 {[%emt 0:01:45]} 17. Rxe5 {[%emt 0:00:22]} Bd3 {[%emt 0:03:33]} 18. Qg3 {[%emt 0:07:14]} Bg6 {[%emt 0:03:43]} 19. h4 {[%emt 0:10:27][%cal Bh2h4,Bh4h5][%mdl 32] [#] Bf4 would now be deadly.} Kh8 {[%emt 0:03:25]} 20. h5 $36 {[%emt 0:14:00][%mdl 2048] White is on the roll. Black is weak on the dark squares} Bf5 {[%emt 0:01:29]} 21. h6 {[%emt 0:01:05]} Rg8 {[%emt 0:03:18]} 22. Bf4 {[%emt 0:02:50][%cal Oe5f5] Strongly threatening Rxf5!} Qf8 {[%emt 0:07:27]} 23. hxg7+ {[%emt 0:10:38]} Qxg7 {[%emt 0:02:41]} 24. Qxg7+ {[%emt 0:00:21]} Kxg7 {[%emt 0:00:31]} 25. c4 {[%emt 0:01:55] Dodges Nd5} Rgd8 {[%emt 0:04:16][%cal Oa7a5]} 26. Ra5 {[%emt 0:01:08]} f6 {[%emt 0:01:14][%cal Ob6c4]} 27. Bc7 {[%emt 0:00:56]} Rdc8 {[%emt 0:00:28]} 28. Bd6 {[%emt 0:00:08]} Rd8 {[%emt 0:02:21]} 29. Bc7 {[%emt 0:00:13]} Rdc8 {[%emt 0:00:05]} 30. Bd6 {[%emt 0:00:21]} Rd8 {[%emt 0:00:05]} 31. Bc5 {[%emt 0:00:21]} Nd7 {[%emt 0:03:13]} 32. Be7 {[%emt 0:01:14] A strong pair of Bishops.} (32. Rxa7 Rxa7 33. Bxa7 Ra8 $16) 32... Rdc8 {[%emt 0:02:35]} 33. Bd6 {[%emt 0:02:23]} Nb6 {[%emt 0:01:27]} 34. f3 {[%emt 0:00:37]} h5 {[%emt 0:00:07]} 35. Kf2 {[%emt 0:00:40]} Kg6 {[%emt 0:01:36]} 36. Re1 {[%emt 0:01:12]} h4 {[%emt 0:01:01]} 37. Ke3 {[%emt 0:03:27] White is much more active.} Rd8 {[%emt 0:01:43]} 38. Bc7 {[%emt 0:00:26]} (38. Bb4 $142) 38... Rdc8 $16 {[%emt 0:00:11]} 39. Bd6 {[%emt 0:00:07]} Rd8 $1 {[%emt 0:00:04]} 40. Bc5 {[%emt 0:03:48]} Rdc8 {[%emt 0:01:03]} (40... Nd7 $16) 41. Rh1 $18 {[%emt 0:07:58]} Rh8 {[%emt 0:01:26]} 42. Ra6 {[%emt 0:00:15]} (42. Bb4 $18) 42... e5 $16 {[%emt 0:05:08]} 43. dxe5 {[%emt 0:01:59]} Rae8 {[%emt 0:00:14]} (43... Nd7 $16 {was called for.}) 44. Bd4 $18 {[%emt 0:02:45]} ({Inferior is} 44. Rxa7 Rxe5+ 45. Kd4 Rd8+ 46. Kc3 Rxc5 $17) 44... c5 {[%emt 0:01:06]} 45. Ba1 {[%emt 0:03:12][%cal Oe3f2]} (45. Bxc5 $2 {too greedy.} Rxe5+ 46. Kd4 Rd8+ 47. Kc3 Rxc5 $19) 45... Rh7 {[%emt 0:03:57]} 46. f4 {[%emt 0:04:12]} (46. Ra5 $18) 46... Rd8 {[%emt 0:03:33] Weighted Error Value: White=0.22 (precise) /Black=0.10 (very precise) .  Mistake:       	White=3     	Black=3      Inaccurate:     	---       	Black=1      OK:         	White=14    	Black=12     Best:        	White=1     	Black=6      Strong:       	White=1     	Black=1} (46... fxe5 $16 47. Bxe5 Rd8) 1/2-1/2

[Event "Karel Janecek Open 2024"]
[Site "Prague"]
[Date "2024.03.03"]
[Round "5.11"]
[White "Isik, Alparslan"]
[Black "Kokoszczynski, Jan"]
[Result "1-0"]
[ECO "D37"]
[WhiteElo "2452"]
[BlackElo "2272"]
[Annotator "TA"]
[PlyCount "73"]
[EventDate "2024.02.22"]
[EventType "swiss"]
[EventCountry "CZE"]
[SourceTitle "playchess.com"]
[Source "ChessBase"]
[SourceQuality "1"]
[TimeControl "40/5400+30:1800+30"]

{[%evp 9,73,15,15,19,22,24,19,26,29,10,19,16,16,12,14,27,20,0,22,25,27,0,111,47,104,91,96,103,144,141,158,148,254,29,53,37,35,52,48,31,52,18,58,0,57,56,104,93,91,91,95,70,75,87,72,8,180,191,221,200,487,486,504,473,451,348]} 1. d4 {[%emt 0:01:15]} d5 {[%emt 0:00:49]} 2. c4 {[%emt 0:00:08]} e6 {[%emt 0:00:06]} 3. Nf3 {[%emt 0:00:05]} h6 {[%emt 0:01:00]} 4. Nc3 {[%emt 0:01:17]} Nf6 {[%emt 0:00:34]} 5. e3 {[%emt 0:01:57]} a6 {[%emt 0:01:45]} 6. b3 {[%emt 0:01:59]} b6 {[%emt 0:16:43]} 7. Bb2 {[%emt 0:01:19]} Bb7 {[%emt 0:01:26]} 8. cxd5 {[%emt 0:03:45] The position is equal.} exd5 {[%emt 0:01:02]} 9. g3 {[%emt 0:03:55]} Bd6 {[%emt 0:01:46]} 10. Bg2 {[%emt 0:00:18]} O-O {[%emt 0:00:23]} 11. O-O {[%emt 0:01:36]} Nbd7 {[%emt 0:02:31]} 12. Rc1 {[%emt 0:04:52]} Re8 {[%emt 0:01:12]} 13. Ne2 {[%emt 0:00:55]} Rc8 {[%emt 0:06:40]} 14. Nf4 {[%emt 0:01:10]} c5 {[%emt 0:01:28]} 15. Nh4 {[%emt 0:13:47]} Bxf4 {[%emt 0:10:26]} (15... Bf8 $1 $11 {remains equal.}) 16. gxf4 {[%emt 0:00:25]} (16. exf4 $16 Ne4 17. Nf5) 16... Ne4 {[%emt 0:01:06]} (16... g6 $14) 17. Nf5 $16 {[%emt 0:02:20] aiming for dxc5.} Ndf6 {[%emt 0:01:01]} 18. dxc5 {[%emt 0:01:04]} bxc5 {[%emt 0:01:29]} 19. Be5 $1 {[%emt 0:00:52] White is more active. This pair of bishops is nice.} Re6 {[%emt 0:21:10]} 20. f3 {[%emt 0:24:23]} Ng5 {[%emt 0:00:53]} (20... Nd6 $16 21. Nxd6 (21. Bxd6 Rxd6 22. Nxd6 Qxd6 $16) 21... Rxd6) 21. Nd6 $2 {[%emt 0:01:45]} ({And not} 21. fxg5 Rxe5 22. f4 Rxf5 $17) ({Better is} 21. b4 $18) 21... Rxd6 $11 {[%emt 0:00:37]} 22. Bxd6 {[%emt 0:00:18]} Qxd6 {[%emt 0:00:20]} 23. fxg5 {[%emt 0:00:07]} hxg5 {[%emt 0:00:03]} 24. Bh3 {[%emt 0:02:35]} Rc7 {[%emt 0:05:52][%cal Og5g4]} 25. Qd3 {[%emt 0:03:52]} Re7 {[%emt 0:04:16]} 26. Bg2 {[%emt 0:10:53]} ({White should play} 26. Qc2 $14) 26... Qb6 {[%emt 0:09:15]} (26... Re6 $11) 27. Qc3 $14 {[%emt 0:01:25]} d4 {[%emt 0:02:51]} (27... Nd7 $14) 28. Qxc5 $16 {[%emt 0:02:24]} Qxc5 {[%emt 0:00:05]} 29. Rxc5 {[%emt 0:00:03]} dxe3 {[%emt 0:00:12]} 30. Rxg5 {[%emt 0:01:28]} Nd5 {[%emt 0:00:03] Hoping for ...e2.} 31. Rg4 $1 {[%emt 0:05:18]} f5 {[%emt 0:01:10] [#] Dodges Re4} 32. Rd4 {[%emt 0:01:22]} (32. Rc4 $1 $16 {f4 is the strong threat.} g5 33. h4) 32... f4 $2 {[%emt 0:00:27] [#] A mistake that costs the game.} (32... g5 $1 $11 {and Black is okay.}) 33. h4 $1 $18 {[%emt 0:03:04]} Rc7 {[%emt 0:02:23]} 34. Re1 {[%emt 0:00:51] And now Bf1 would win.} Rc2 $2 {[%emt 0:00:25]} (34... Kf7 {is a better defense.} 35. Bf1 Kf6) 35. Bf1 {[%emt 0:00:13] White is clearly winning.} Rxa2 {[%emt 0:03:46]} 36. Bc4 {[%emt 0:00:45][%csl LRd5,LRf4]} Rd2 {[%emt 0:00:24]} 37. Rxf4 {[%emt 0:02:16] Weighted Error Value: White=0.26 (precise) /Black=0.39.  Loses game:     	---       	Black=1      Missed win:     	White=1     	---        Mistake:       	White=3     	Black=6      Inaccurate:     	White=2     	Black=2      OK:         	White=10    	Black=10     Best:        	White=2     	Black=1      Strong:       	White=2     	---} 1-0

[Event "Karel Janecek Open 2024"]
[Site "Prague"]
[Date "2024.03.03"]
[Round "5.12"]
[White "Cieslak, Patryk"]
[Black "Sethuraman, S.P."]
[Result "1/2-1/2"]
[ECO "B56"]
[WhiteElo "2325"]
[BlackElo "2594"]
[Annotator "TA"]
[PlyCount "93"]
[EventDate "2024.02.22"]
[EventType "swiss"]
[EventCountry "CZE"]
[SourceTitle "playchess.com"]
[Source "ChessBase"]
[SourceQuality "1"]
[TimeControl "40/5400+30:1800+30"]

{[%evp 20,93,29,13,26,23,29,28,54,54,64,52,56,53,42,47,51,45,45,49,45,14,8,16,54,46,42,40,57,32,42,-26,0,-35,-6,-70,-62,-61,-54,-59,-64,-87,-90,-86,-59,-97,-118,-135,-127,-133,-145,-140,-22,-75,0,0,0,3,18,0,0,0,10,0,0,0,0,0,0,0,0,0,0,0,26,0]} 1. e4 {[%emt 0:00:01]} c5 {[%emt 0:01:58]} 2. Nf3 {[%emt 0:00:09]} d6 {[%emt 0:00:04]} 3. d4 {[%emt 0:00:07]} cxd4 {[%emt 0:00:04]} 4. Nxd4 {[%emt 0:00:05]} Nf6 {[%emt 0:00:06]} 5. f3 {[%emt 0:00:03]} Nc6 {[%emt 0:02:16]} 6. Nc3 {[%emt 0:00:05]} e5 {[%emt 0:02:03]} 7. Nb3 {[%emt 0:00:20]} Be7 {[%emt 0:00:07]} 8. Be3 {[%emt 0:00:11]} Be6 {[%emt 0:00:39]} 9. Qd2 {[%emt 0:00:19]} O-O {[%emt 0:12:06]} 10. O-O-O {[%emt 0:00:44]} a5 {[%emt 0:00:03]} 11. Bb5 {[%emt 0:00:30]} Na7 {[%emt 0:00:05]} 12. Bxa7 {[%emt 0:00:14]} Rxa7 {[%emt 0:00:03]} 13. Kb1 {[%emt 0:01:24]} Nd7 {[%emt 0:08:19]} 14. a4 {[%emt 0:11:41]} Nb6 {[%emt 0:00:20]} 15. Qd3 {[%emt 0:08:54] White is more active.} Ra8 {[%emt 0:02:19]} 16. g4 {[%emt 0:07:31]} Rc8 {[%emt 0:05:55]} 17. h4 {[%emt 0:02:39]} ({Much worse is} 17. Nxa5 Nxa4 18. Nxa4 Qxa5 $15) 17... Qc7 {[%emt 0:05:51]} 18. Nd5 {[%emt 0:07:20]} ({But not} 18. Nxa5 Nxa4 19. Nxa4 Qxa5 $11) 18... Nxd5 {[%emt 0:01:35]} 19. exd5 {[%emt 0:00:08]} Bd7 {[%emt 0:00:02]} 20. Rc1 {[%emt 0:05:42]} f5 {[%emt 0:03:16]} 21. g5 {[%emt 0:08:42][%cal Ob3a5]} Be8 {[%emt 0:15:14]} 22. Bxe8 {[%emt 0:05:58]} Rcxe8 {[%emt 0:00:03]} 23. Qb5 {[%emt 0:01:15] Wards off Qd7} Bd8 {[%emt 0:00:07]} 24. Rh3 {[%emt 0:01:18]} Qb6 {[%emt 0:04:00]} 25. Qc4 {[%emt 0:03:09]} (25. Nd2 $1 $14) 25... Qe3 {[%emt 0:10:50]} 26. Qf1 {[%emt 0:02:20]} Bb6 {[%emt 0:01:12]} 27. Re1 {[%emt 0:01:45]} (27. Qb5 $11) 27... Qf4 $1 $15 {[%emt 0:00:32]} 28. Qb5 {[%emt 0:01:38][%csl LRa5,LRb6]} Qb4 $1 {[%emt 0:03:14]} 29. Qxb4 {[%emt 0:00:23]} axb4 {[%emt 0:00:03]} 30. Nd2 {[%emt 0:06:35]} Rc8 {[%emt 0:00:49]} 31. f4 {[%emt 0:01:17]} exf4 {[%emt 0:09:01]} 32. Rf3 {[%emt 0:00:19]} Rfe8 {[%emt 0:05:11]} 33. Rxe8+ {[%emt 0:00:14]} Rxe8 $17 {[%emt 0:00:04][%mdl 4096] Endgame. KRB-KRN} 34. Nc4 {[%emt 0:00:05]} (34. Rxf4 $2 {perishes.} Be3 35. Rxf5 Bxd2 $19) 34... Bc5 {[%emt 0:02:53]} 35. Rxf4 {[%emt 0:00:07]} g6 {[%emt 0:02:22]} (35... Re1+ $17 36. Ka2 Re4 37. Rxe4 fxe4) 36. Ka2 {[%emt 0:05:20]} (36. Kc1 $1 $11) 36... Kf7 {[%emt 0:04:10]} (36... Kf8 $17) 37. Kb3 $11 {[%emt 0:00:55]} Re1 {[%emt 0:01:08]} 38. Na5 {[%emt 0:03:28]} Re7 {[%emt 0:00:04]} 39. Nc4 {[%emt 0:02:53]} Re1 {[%emt 0:00:18]} 40. Na5 {[%emt 0:00:12]} Re7 {[%emt 0:00:04]} 41. Nc4 {[%emt 0:31:28]} Ke8 {[%emt 0:03:18]} 42. c3 {[%emt 0:00:00]} bxc3 {[%emt 0:00:24]} 43. Kxc3 {[%emt 0:00:00]} Kd7 {[%emt 0:00:10]} 44. b4 {[%emt 0:00:00]} Ba7 {[%emt 0:00:01]} 45. Kd2 {[%emt 0:00:00][%cal Oh4h5]} Bg1 {[%emt 0:01:11]} 46. a5 {[%emt 0:00:00]} Kc7 {[%emt 0:19:21]} 47. Rf1 {[%emt 0:00:00] Weighted Error Value: White=0.13 (very precise) /Black=0.14 (very precise) .  Mistake:       	White=3     	Black=2      Inaccurate:     	White=3     	Black=5      OK:         	White=16    	Black=15     Best:        	White=2     	---        Strong:       	---       	Black=2} 1/2-1/2

[Event "Karel Janecek Open 2024"]
[Site "Prague"]
[Date "2024.03.03"]
[Round "5.13"]
[White "Amar, Elham"]
[Black "Simek, Petr"]
[Result "1-0"]
[ECO "C65"]
[WhiteElo "2555"]
[BlackElo "2291"]
[Annotator "TA"]
[PlyCount "71"]
[EventDate "2024.02.22"]
[EventType "swiss"]
[EventCountry "CZE"]
[SourceTitle "playchess.com"]
[Source "ChessBase"]
[SourceQuality "1"]
[TimeControl "40/5400+30:1800+30"]

{[%evp 9,71,19,17,10,15,18,16,9,14,8,7,16,16,16,31,23,18,22,30,25,35,37,38,37,33,28,38,20,31,31,56,55,52,12,35,41,43,31,30,0,14,9,24,25,31,7,14,14,20,0,35,32,43,28,73,73,166,166,370,402,341,356,1053,1048]} 1. e4 {[%emt 0:02:10]} e5 {[%emt 0:00:08]} 2. Nf3 {[%emt 0:00:05]} Nc6 {[%emt 0:00:05]} 3. Bb5 {[%emt 0:00:05]} Nf6 {[%emt 0:00:09]} 4. d3 {[%emt 0:00:06]} Bc5 {[%emt 0:00:11]} 5. Bxc6 {[%emt 0:00:09]} dxc6 {[%emt 0:00:08]} 6. Qe2 {[%emt 0:00:08]} (6. Nxe5 $2 Qd4 7. Qe2 Qxe5 $19) 6... Bd6 {[%emt 0:07:17]} 7. Nbd2 {[%emt 0:01:10]} Be6 {[%emt 0:00:25]} 8. Ng5 {[%emt 0:01:43] The position is equal.} Bg4 {[%emt 0:02:39]} 9. f3 {[%emt 0:00:24][%cal Bf2f3,Bf3f4,Bf4f5][%mdl 32]} Bd7 {[%emt 0:00:11] [#]} 10. f4 $1 {[%emt 0:00:14]} Bg4 {[%emt 0:03:59]} (10... Ng4 11. Nc4) 11. Ngf3 {[%emt 0:02:36]} Nd7 {[%emt 0:04:24]} (11... exf4 {with more complications.} 12. e5 O-O 13. exd6 Re8) 12. f5 {[%emt 0:18:28]} f6 {[%emt 0:11:43]} 13. Nc4 {[%emt 0:03:02]} Qe7 {[%emt 0:06:12]} 14. Bd2 {[%emt 0:07:07]} b6 {[%emt 0:12:40]} 15. O-O-O {[%emt 0:05:31]} a5 {[%emt 0:01:05]} 16. Kb1 {[%emt 0:16:02]} Bh5 {[%emt 0:21:52]} 17. h3 {[%emt 0:11:44]} Bc5 {[%emt 0:03:50]} 18. Be3 {[%emt 0:04:31]} Bxe3 {[%emt 0:02:42]} 19. Nxe3 {[%emt 0:00:32]} c5 {[%emt 0:06:09]} 20. g4 {[%emt 0:03:20]} Bf7 {[%emt 0:00:05]} 21. Rhg1 {[%emt 0:00:19]} a4 {[%emt 0:10:14][%cal Ba5a4,Ba4a3][%mdl 32]} 22. g5 {[%emt 0:02:12]} b5 {[%emt 0:01:04]} 23. gxf6 {[%emt 0:07:01]} gxf6 {[%emt 0:00:06]} 24. c4 {[%emt 0:01:56]} b4 {[%emt 0:03:57]} 25. Rg7 {[%emt 0:02:19]} c6 {[%emt 0:00:05]} 26. Rdg1 {[%emt 0:01:34]} a3 {[%emt 0:00:39]} 27. Nh4 {[%emt 0:02:20][%cal Oh4g6] And now Ng6! would win.} Qf8 {[%emt 0:00:44]} 28. b3 {[%emt 0:06:49]} O-O-O {[%emt 0:00:29]} 29. Kc2 {[%emt 0:00:43]} Qe8 {[%emt 0:01:03]} (29... Nb6 {seems wilder.} 30. Nf3 Bh5 31. Qf2 Rd7) 30. Ng4 {[%emt 0:00:24]} Bh5 {[%emt 0:00:30]} 31. Qe3 {[%emt 0:00:03][%cal Og4f6] aiming for Nxf6!} Bxg4 {[%emt 0:00:40]} 32. R1xg4 {[%emt 0:00:05]} (32. hxg4 Qf8 33. Qh6 Nb8 $17) 32... Qh5 {[%emt 0:00:22] [#] Black is weak on the light squares} (32... Qf8 $16) 33. Nf3 $1 $36 {[%emt 0:01:20][%mdl 2048] White is really pushing.} Rdf8 $2 {[%emt 0:00:40] [#]} (33... Kb8 {keeps fighting.} 34. Rh4 Qe8) 34. Rxd7 $1 {[%emt 0:00:45][%mdl 512]} Kxd7 {[%emt 0:00:07]} 35. Qxc5 {[%emt 0:00:01] White wants to mate with Qa7+.} (35. Rh4 Qe8 36. Qxc5 Qe7 37. Qa7+ Ke8 38. Qa8+ Kf7 39. Qxc6 Rd8 $15) 35... Qf7 $2 {[%emt 0:00:52] [#]} (35... Rfg8 36. Qa7+ (36. Qxb4 Rxg4 37. Qb7+ Ke8 $14) 36... Kd8 37. Qb8+ Kd7 38. Qb7+ (38. Rxg8 Rxg8 39. Qxg8 Qxf3 $14) (38. Qxb4 Qxh3 39. Qb7+ Kd8 $18) 38... Kd8 39. Qxc6 (39. Qxb4 Kc8 $18) 39... Rxg4 40. Qxf6+ (40. hxg4 Qh6 $18) 40... Kc7) 36. Rg7 $3 {[%emt 0:00:12][%mdl 512] Weighted Error Value: White=0.05 (flawless) /Black=0.24 (precise) .  Mistake:       	---       	Black=3      Inaccurate:     	White=1     	Black=2      OK:         	White=12    	Black=9      Best:        	White=1     	---        Strong:       	White=1     	---        Brilliant:      	White=2     	---} 1-0

[Event "Karel Janecek Open 2024"]
[Site "Prague"]
[Date "2024.03.03"]
[Round "5.14"]
[White "Bharath Subramaniyam H"]
[Black "Serrano Salvador, Eduardo"]
[Result "1-0"]
[ECO "D02"]
[WhiteElo "2515"]
[BlackElo "2281"]
[Annotator "TA"]
[PlyCount "77"]
[EventDate "2024.02.22"]
[EventType "swiss"]
[EventCountry "CZE"]
[SourceTitle "playchess.com"]
[Source "ChessBase"]
[SourceQuality "1"]
[TimeControl "40/5400+30:1800+30"]

{[%evp 11,77,-2,2,-3,-2,-4,-6,-8,0,-7,0,32,31,-12,-9,-9,0,-7,29,30,31,6,0,0,0,0,0,0,0,-17,36,37,66,58,62,42,35,24,115,122,111,111,112,120,193,211,247,246,383,379,359,386,434,434,434,422,416,407,457,388,1627,1260,1631,1620,1116,1156,1049,728]} 1. d4 {[%emt 0:02:04]} d5 {[%emt 0:01:03]} 2. Nf3 {[%emt 0:00:10]} Nf6 {[%emt 0:01:27]} 3. Bf4 {[%emt 0:03:14]} e6 {[%emt 0:00:25]} 4. e3 {[%emt 0:00:08]} Bd6 {[%emt 0:00:08]} 5. Ne5 {[%emt 0:00:15]} O-O {[%emt 0:00:41]} 6. Nd2 {[%emt 0:01:19]} c5 {[%emt 0:00:26]} 7. c3 {[%emt 0:00:12]} Qc7 {[%emt 0:01:40]} 8. Bd3 {[%emt 0:00:18]} Nbd7 {[%emt 0:00:27]} 9. Ndf3 {[%emt 0:00:26] The position is equal.} Ne4 {[%emt 0:00:26]} 10. h4 {[%emt 0:25:10]} f6 {[%emt 0:11:06]} 11. Nxd7 {[%emt 0:04:44]} Bxd7 {[%emt 0:00:57]} 12. Bxd6 {[%emt 0:02:38]} (12. Bxe4 $5 Bxf4 13. Bxh7+ Kxh7 14. Qd3+ (14. exf4 Qxf4 15. O-O cxd4 $11) 14... Kh8 15. exf4 $11) 12... Nxd6 {[%emt 0:15:10]} 13. Qc2 {[%emt 0:04:26]} f5 {[%emt 0:04:18]} 14. O-O {[%emt 0:08:11]} Bb5 {[%emt 0:02:04]} (14... c4 $5 15. Be2 $8 h6 $11) 15. Bxb5 {[%emt 0:09:38]} Nxb5 {[%emt 0:00:09]} 16. dxc5 {[%emt 0:00:30]} Qxc5 {[%emt 0:00:24]} 17. Rac1 {[%emt 0:03:07]} Rac8 {[%emt 0:02:52]} 18. Rfd1 {[%emt 0:03:54]} Nd6 {[%emt 0:02:54]} 19. Nd4 {[%emt 0:07:07]} Rfe8 {[%emt 0:01:54]} 20. h5 {[%emt 0:02:32]} b5 {[%emt 0:03:11]} (20... Qc7 $11) 21. a4 $14 {[%emt 0:02:41]} a6 {[%emt 0:01:15][%cal Ba7a6,Ba6b5,Bb5b4][%mdl 32]} 22. axb5 {[%emt 0:03:39]} axb5 {[%emt 0:00:07]} 23. Qe2 {[%emt 0:00:56]} Qc4 {[%emt 0:16:19]} 24. Qf3 {[%emt 0:01:42]} Nf7 {[%emt 0:06:53]} (24... Qa2 $11 {remains equal.}) 25. Ra1 $1 $16 {[%emt 0:01:46]} b4 {[%emt 0:04:59]} 26. Ra4 {[%emt 0:02:01]} Rb8 {[%emt 0:00:13]} 27. Rda1 {[%emt 0:01:40]} Qc5 {[%emt 0:01:28]} (27... Nh6 $16 28. Qg3 Qc8) 28. cxb4 $1 $18 {[%emt 0:02:21]} Rxb4 {[%emt 0:01:54]} 29. Ra8 {[%emt 0:01:26]} Qf8 {[%emt 0:05:51] [#]} (29... Rbb8 $142 30. Rxb8 Rxb8 31. Nxe6 Qb5 32. Qxf5 Qxb2) 30. Rxe8 $1 {[%emt 0:01:17]} Qxe8 {[%emt 0:00:08] [#]} 31. Nxe6 $1 {[%emt 0:00:15][%mdl 512]} Qxe6 {[%emt 0:00:49]} (31... Re4 32. Nc5) 32. Ra8+ {[%emt 0:00:02]} Nd8 {[%emt 0:00:08]} 33. Rxd8+ {[%emt 0:00:08][%mdl 4096] Endgame. KQR-KQR} Kf7 {[%emt 0:00:04]} 34. Rxd5 {[%emt 0:00:41]} ({Worse is} 34. Qxd5 Qxd5 35. Rxd5 Kf6 $11) 34... g6 {[%emt 0:00:21]} 35. Rd2 {[%emt 0:02:05] aiming for Qa8.} Qc4 $2 {[%emt 0:00:14]} (35... Rb6 36. Qd1 Rb7) 36. Rd7+ {[%emt 0:01:46] White is clearly winning.} Ke6 {[%emt 0:00:27]} 37. Qd1 {[%emt 0:00:24]} (37. Rxh7 Qc1+ 38. Kh2 Rh4+ 39. Kg3 Rg4+ 40. Kh2 Rh4+ 41. Kg3 Rg4+ 42. Kh2 Rh4+ $11) 37... Qc6 {[%emt 0:00:51] Prevents Qd6+} 38. Rxh7 {[%emt 0:01:12]} Rc4 {[%emt 0:01:01]} 39. Qd8 {[%emt 0:01:39] Weighted Error Value: White=0.07 (flawless) /Black=0.31.  Mistake:       	---       	Black=5      Inaccurate:     	White=1     	Black=3      OK:         	White=13    	Black=8      Best:        	White=3     	Black=2      Strong:       	White=2     	---        Brilliant:      	White=1     	---} ({Not} 39. hxg6 Rc1 $17) 1-0